fUST/lending_fUST_20240622
["ID","MTS","AMOUNT","RATE_DAILY","PERIOD"]
[330111088,1718998233186,-7113.35567594,0.00018188,2]
[330111089,1718998233198,-994.56733326,0.00018188,2]
[330111142,1718998239114,-723.48959224,0.00015116,2]
[330111143,1718998239125,-1372.55925199,0.00016418,2]
[330111144,1718998239144,-667.3765602,0.00016418,2]
[330111145,1718998239155,-154.82195475,0.0001642,2]
[330111146,1718998239166,-490.07682753,0.0001642,2]
[330111147,1718998239177,-151.0,0.00016845,2]
[330111148,1718998239187,-151.0,0.00016845,2]
[330111149,1718998239197,-154.82195475,0.00017106,2]
[330111150,1718998239208,-1148.18467959,0.00017106,2]
[330111151,1718998239218,-151.0,0.0001773,2]
[330111152,1718998239229,-151.0,0.0001773,2]
[330111153,1718998239239,-2450.32109351,0.00018188,2]
[330111154,1718998239251,-151.0,0.00018188,2]
[330111155,1718998239262,-202.682078,0.00018188,2]
[330111156,1718998239272,-20000.0,0.00018189,2]
[330111157,1718998239282,-245.0,0.00018189,2]
[330111158,1718998239292,-151.0,0.00018189,2]
[330111159,1718998239302,-208.75351441,0.00018192,2]
[330111160,1718998239313,-303.72235447,0.00018744,2]
[330111161,1718998239323,-1102.63561948,0.00018745,2]
[330111162,1718998239334,-827.88901606,0.000189,2]
[330111163,1718998239344,-525.21703192,0.00019,2]
[330111164,1718998239357,-523.87515203,0.00019012,2]
[330111165,1718998239367,-153.0,0.00019013,2]
[330111166,1718998239377,-153.0,0.00019013,2]
[330111167,1718998239390,-154.83742071,0.0001917,2]
[330111168,1718998239400,-402.44339184,0.0001917,2]
[330111169,1718998239410,-155.01549845,0.00019171,2]
[330111170,1718998239421,-155.01395126,0.00019171,2]
[330111171,1718998239431,-151.0,0.00019172,2]
[330111172,1718998239442,-500.0,0.00019178,2]
[330111173,1718998239452,-500.0,0.00019178,2]
[330111174,1718998239464,-500.0,0.00019178,2]
[330111175,1718998239474,-500.0,0.00019178,2]
[330111176,1718998239485,-500.0,0.00019178,2]
[330111177,1718998239496,-287.84533594,0.00019178,2]
[330111178,1718998239506,-647.09431124,0.00019178,2]
[330111179,1718998239517,-500.21637333,0.00019178,2]
[330111180,1718998239528,-168.660891,0.00019178,2]
[330111181,1718998239539,-207.973215,0.00019178,2]
[330111182,1718998239549,-620.1305334,0.00019957,2]
[330111183,1718998239559,-151.0,0.00019957,2]
[330111184,1718998239570,-181.53915781,0.0002,2]
[330111185,1718998239580,-167.35523192,0.0002,2]
[330111186,1718998239591,-292.86437788,0.0002,2]
[330111187,1718998239602,-812.64963227,0.0002,2]
[330111188,1718998239612,-4837.485,0.0002,2]
[330111189,1718998239623,-314.62809134,0.0002,2]
[330111190,1718998239633,-435.0,0.0002,2]
[330111191,1718998239646,-252.0,0.0002,2]
[330111192,1718998239656,-151.0,0.0002,2]
[330111193,1718998239665,-393.97637515,0.000203,2]
[330111194,1718998239675,-1102.63561948,0.00020668,2]
[330111195,1718998239685,-1603.84891999,0.00020919,2]
[330111196,1718998239694,-620.00652667,0.00020954,2]
[330111197,1718998239704,-409.48165344,0.00020999,2]
[330111198,1718998239715,-5409.11399974,0.00021,2]
[330111199,1718998239725,-3946.10183101,0.00021,2]
[330111200,1718998239740,-6139.31174022,0.00021,2]
[330111201,1718998239751,-151.0,0.00021,2]
[330111202,1718998239761,-151.0,0.00021,2]
[330111203,1718998239771,-750.0,0.00021096,2]
[330111204,1718998239781,-228.002,0.00021198,2]
[330111205,1718998239791,-1752.0,0.00021198,2]
[330111206,1718998239802,-501.29652058,0.000212,2]
[330111207,1718998239813,-152.050325,0.00021918,2]
[330111208,1718998239823,-152.050325,0.00021918,2]
[330111209,1718998239833,-152.050325,0.00021918,2]
[330111210,1718998239844,-152.050325,0.00021918,2]
[330111211,1718998239855,-166.666666,0.00021918,2]
[330111212,1718998239866,-151.0,0.00021918,7]
[330111213,1718998239877,-307.01236865,0.00022,2]
[330111214,1718998239888,-152.050325,0.00022,7]
[330111215,1718998239898,-620.00032633,0.00022002,2]
[330111216,1718998239908,-878.16482601,0.0002217,2]
[330111217,1718998239918,-300.0,0.00022294,2]
[330111218,1718998239928,-153.0,0.00022301,2]
[330111219,1718998239939,-153.0,0.00022301,2]
[330111220,1718998239950,-153.0,0.00022301,2]
[330111221,1718998239966,-153.0,0.00022301,2]
[330111222,1718998239976,-153.0,0.00022301,2]
[330111223,1718998239987,-306.0,0.00022301,2]
[330111224,1718998239997,-301.29168263,0.00022406,2]
[330111225,1718998240009,-1000.0,0.00022418,2]
[330111226,1718998240020,-166.666666,0.00022431,2]
[330111227,1718998240031,-152.050327,0.00022431,7]
[330111228,1718998240044,-1000.0,0.00022449,2]
[330111229,1718998240055,-6458.84910144,0.00022499,2]
[330111230,1718998240068,-8823.72868169,0.00022499,2]
[330111231,1718998240079,-3000.0,0.000225,2]
[330111232,1718998240090,-880.44739195,0.000225,2]
[330111256,1718998244313,-239.44440466,0.00014643,2]
[330111257,1718998244323,-626.79430955,0.00016822,2]
[330111258,1718998244333,-208.69640954,0.00017082,2]
[330111259,1718998244342,-119.55260805,0.000225,2]
[330111260,1718998244352,-3000.0,0.0002251,2]
[330111261,1718998244361,-3000.0,0.0002252,2]
[330111262,1718998244371,-3000.0,0.0002253,2]
[330111263,1718998244382,-3000.0,0.0002254,2]
[330111264,1718998244394,-3000.0,0.0002255,2]
[330111265,1718998244404,-1503.59915807,0.00022559,2]
[330111266,1718998244414,-3000.0,0.0002256,2]
[330111267,1718998244423,-3000.0,0.0002257,2]
[330111268,1718998244433,-3000.0,0.0002258,2]
[330111269,1718998244443,-3000.0,0.0002259,2]
[330111270,1718998244453,-1102.63561948,0.0002259,2]
[330111271,1718998244463,-3000.0,0.000226,2]
[330111272,1718998244472,-765.65458018,0.0002261,2]
[330111297,1718998581119,179.48462699,9.999e-05,2]
[330111302,1718998640484,14790.24103725,0.0001,2]
[330111303,1718998641052,179.48462699,0.0001212,2]
[330111307,1718998674537,340.04073166,9.999e-05,2]
[330111314,1718999069536,11110.56607981,0.0001212,2]
[330111315,1718999216073,286.62420276,9.999e-05,2]
[330111323,1718999254201,-500.0,0.0003,120]
[330111324,1718999275591,616.04991797,0.0001212,2]
[330111326,1718999362294,3000.0,0.00031419,120]
[330111327,1718999411215,-580.81339283,0.00014136,2]
[330111328,1718999411339,-425.19196613,0.00014136,2]
[330111514,1718999438035,-2055.06712915,0.00014136,2]
[330111532,1718999441555,-6537.76408885,0.00014136,2]
[330111533,1718999441566,-10558.24410271,0.00014144,2]
[330111534,1718999441577,-1144.65178045,0.00014147,2]
[330111535,1718999441587,-792.99185688,0.00014641,2]
[330111536,1718999441597,-977.69768825,0.00014691,2]
[330111537,1718999441607,-2237.08822374,0.00015002,2]
[330111538,1718999441618,-2128.29563568,0.00016536,2]
[330111539,1718999441627,-3169.98718001,0.00016537,2]
[330111540,1718999441644,-21730.01281999,0.00016537,2]
[330111541,1718999441655,-476.0536246,0.00016883,2]
[330111542,1718999441667,-3124.43019182,0.00016983,4]
[330111543,1718999441676,-1221.7308382,0.00016984,2]
[330111544,1718999441686,-20000.0,0.00018183,2]
[330111545,1718999441697,-354.92290169,0.00018183,2]
[330111546,1718999441706,-476.0536246,0.00018322,2]
[330111547,1718999441717,-601.9260107,0.000189,2]
[330111548,1718999441726,-349.67714569,0.00019178,2]
[330111549,1718999441737,-476.0536246,0.00019761,2]
[330111550,1718999441891,-783.90862421,0.00019808,2]
[330111551,1718999441901,-1221.73083814,0.00019809,2]
[330111552,1718999441913,-401.52259031,0.00019999,2]
[330111553,1718999441923,-490.07682753,0.00020438,2]
[330111554,1718999441932,-208.69640954,0.00020438,2]
[330111555,1718999441941,-151.0,0.00020439,2]
[330111556,1718999441951,-151.0,0.00020439,2]
[330111557,1718999441960,-208.69640954,0.00020719,2]
[330111558,1718999441969,-150.0,0.0002072,2]
[330111559,1718999441978,-1752.0,0.0002072,2]
[330111560,1718999441988,-150.506,0.0002072,2]
[330111561,1718999441997,-2567.74462911,0.00021095,2]
[330111562,1718999442006,-261.350782,0.00021096,2]
[330111563,1718999442016,-728.998651,0.00021096,2]
[330111564,1718999442025,-766.988748,0.00021096,2]
[330111565,1718999442035,-766.988748,0.00021096,2]
[330111566,1718999442044,-151.0,0.00021096,2]
[330111567,1718999442053,-151.0,0.00021096,2]
[330111568,1718999442062,-463.328871,0.00021096,2]
[330111569,1718999442071,-463.328871,0.00021096,2]
[330111570,1718999442080,-151.0,0.00021096,2]
[330111571,1718999442089,-285.508211,0.00021096,2]
[330111572,1718999442099,-2567.74462911,0.00021199,2]
[330111573,1718999442108,-476.0536246,0.000212,2]
[330111574,1718999442117,-435.0,0.00021878,2]
[330111575,1718999442126,-159.29148896,0.00021879,2]
[330111576,1718999442135,-402.44339184,0.00021879,2]
[330111577,1718999442144,-154.82195475,0.00021879,2]
[330111578,1718999442154,-154.82195475,0.00021879,2]
[330111579,1718999442165,-1102.45850324,0.0002188,2]
[330111580,1718999442174,-687.40904727,0.00021881,2]
[330111581,1718999442184,-314.62809134,0.00021884,2]
[330111582,1718999442193,-516.57466289,0.00021885,2]
[330111583,1718999442203,-912.25775192,0.00021885,2]
[330111584,1718999442212,-157.13057066,0.00021886,2]
[330111585,1718999442221,-154.82195475,0.00021886,2]
[330111586,1718999442230,-530.87340588,0.00021886,2]
[330111587,1718999442240,-317.94108609,0.00021886,2]
[330111588,1718999442249,-723.48959224,0.00021886,2]
[330111589,1718999442258,-525.21703192,0.00021887,2]
[330111590,1718999442267,-151.0,0.00021897,2]
[330111591,1718999442277,-151.0,0.00021897,2]
[330111592,1718999442286,-151.0,0.00021897,2]
[330111593,1718999442295,-151.0,0.00021897,2]
[330111594,1718999442305,-151.0,0.00021898,2]
[330111595,1718999442314,-151.0,0.000219,2]
[330111596,1718999442323,-151.0,0.000219,2]
[330111597,1718999442332,-766.988748,0.000219,2]
[330111598,1718999442342,-766.988748,0.000219,2]
[330111599,1718999442351,-151.0,0.000219,2]
[330111600,1718999442362,-151.0,0.000219,2]
[330111601,1718999442376,-463.328871,0.000219,2]
[330111602,1718999442385,-463.328871,0.000219,2]
[330111603,1718999442396,-151.0,0.000219,2]
[330111604,1718999442406,-151.0,0.000219,2]
[330111605,1718999442422,-151.0,0.000219,2]
[330111606,1718999442431,-151.0,0.000219,2]
[330111607,1718999442441,-154.45674,0.000219,2]
[330111608,1718999442452,-151.0,0.000219,2]
[330111609,1718999442462,-151.0,0.000219,2]
[330111611,1718999442471,-151.0,0.000219,2]
[330111613,1718999442481,-245.470752,0.000219,2]
[330111615,1718999442491,-151.0,0.000219,2]
[330111617,1718999442501,-151.0,0.000219,2]
[330111618,1718999442510,-151.0,0.000219,2]
[330111619,1718999442520,-151.0,0.00021902,2]
[330111621,1718999442530,-151.0,0.00021902,2]
[330111623,1718999442540,-151.0,0.00021902,2]
[330111625,1718999442549,-151.0,0.00021905,2]
[330111626,1718999442559,-151.0,0.00021905,2]
[330111627,1718999442568,-151.0,0.00021918,2]
[330111628,1718999442578,-166.666666,0.00021918,2]
[330111629,1718999442589,-593.0,0.00022,2]
[330111630,1718999442599,-151.0,0.00022256,7]
[330111631,1718999442610,-151.0,0.00022276,7]
[330111632,1718999442620,-151.0,0.00022276,7]
[330111633,1718999442630,-151.0,0.00022276,7]
[330111634,1718999442640,-153.0,0.00022297,2]
[330111635,1718999442651,-5044.44536346,0.000223,2]
[330111636,1718999442664,-151.0,0.000223,7]
[330111637,1718999442675,-151.0,0.000223,7]
[330111638,1718999442684,-151.0,0.000223,7]
[330111639,1718999442693,-151.0,0.000223,7]
[330111640,1718999442702,-151.0,0.000223,7]
[330111641,1718999442711,-151.0,0.000223,7]
[330111642,1718999442720,-151.0,0.000223,7]
[330111643,1718999442730,-766.988748,0.000223,7]
[330111646,1718999442740,-766.988748,0.000223,7]
[330111647,1718999442751,-151.0,0.000223,7]
[330111648,1718999442759,-151.0,0.000223,7]
[330111649,1718999442769,-463.328871,0.000223,7]
[330111650,1718999442779,-463.328871,0.000223,7]
[330111651,1718999442789,-272.040854,0.000223,7]
[330111652,1718999442799,-151.0,0.000223,7]
[330111653,1718999442808,-151.0,0.000223,7]
[330111654,1718999442819,-151.0,0.000223,7]
[330111655,1718999442829,-151.0,0.000223,7]
[330111656,1718999442838,-151.0,0.000223,7]
[330111657,1718999442847,-151.0,0.000223,7]
[330111658,1718999442857,-151.0,0.000223,7]
[330111659,1718999442868,-151.0,0.000223,7]
[330111660,1718999442878,-158.514409,0.00022373,7]
[330111661,1718999442886,-5163.12502038,0.00022384,2]
[330111663,1718999442896,-166.666666,0.00022431,2]
[330111664,1718999442905,-252.0,0.000226,2]
[330111665,1718999442916,-151.0,0.000226,7]
[330111666,1718999442925,-151.0,0.000226,7]
[330111667,1718999442934,-151.988398,0.000226,7]
[330111668,1718999442943,-151.0,0.000226,7]
[330111669,1718999442952,-3000.0,0.000226,2]
[330111670,1718999442962,-171.407289,0.000226,7]
[330111671,1718999442971,-151.0,0.000226,7]
[330111672,1718999442981,-151.0,0.000226,7]
[330111673,1718999442991,-151.0,0.000226,7]
[330111674,1718999443000,-151.0,0.000226,7]
[330111675,1718999443009,-181.53915781,0.0002261,2]
[330111676,1718999443019,-154.98450155,0.0002261,2]
[330111677,1718999443028,-3000.0,0.0002261,2]
[330111678,1718999443038,-766.988748,0.0002261,7]
[330111679,1718999443047,-766.988748,0.0002261,7]
[330111680,1718999443056,-224.265466,0.0002261,7]
[330111682,1718999443066,-151.0,0.0002261,7]
[330111684,1718999443076,-463.328871,0.0002261,7]
[330111685,1718999443086,-463.328871,0.0002261,7]
[330111687,1718999443095,-151.0,0.0002261,7]
[330111689,1718999443105,-151.0,0.0002261,7]
[330111690,1718999443114,-151.0,0.0002261,7]
[330111692,1718999443123,-151.0,0.0002261,7]
[330111694,1718999443132,-151.0,0.0002261,7]
[330111696,1718999443142,-151.0,0.0002261,7]
[330111697,1718999443151,-151.0,0.0002262,7]
[330111698,1718999443161,-151.0,0.0002262,7]
[330111699,1718999443173,-153.359347,0.0002262,7]
[330111700,1718999443182,-3000.0,0.0002262,2]
[330111701,1718999443191,-151.0,0.0002262,7]
[330111702,1718999443200,-151.0,0.0002262,7]
[330111703,1718999443212,-151.0,0.0002262,7]
[330111704,1718999443222,-151.0,0.0002262,7]
[330111705,1718999443231,-151.0,0.0002263,7]
[330111706,1718999443241,-151.0,0.0002263,7]
[330111707,1718999443251,-151.0,0.0002263,7]
[330111708,1718999443260,-3000.0,0.0002263,2]
[330111709,1718999443269,-237.84203,0.00022633,7]
[330111710,1718999443279,-1221.73083814,0.00022633,2]
[330111711,1718999443289,-476.0536246,0.00022639,2]
[330111712,1718999443299,-21413.66328413,0.00022639,2]
[330111713,1718999443308,-3000.0,0.0002264,2]
[330111714,1718999443318,-766.988748,0.0002264,7]
[330111715,1718999443328,-766.988748,0.0002264,7]
[330111716,1718999443337,-151.0,0.0002264,7]
[330111717,1718999443347,-463.328871,0.0002264,7]
[330111718,1718999443357,-463.328871,0.0002264,7]
[330111720,1718999443367,-151.0,0.0002264,7]
[330111722,1718999443379,-151.0,0.0002264,7]
[330111724,1718999443389,-151.0,0.0002264,7]
[330111725,1718999443398,-151.0,0.0002264,7]
[330111726,1718999443407,-151.0,0.0002264,7]
[330111727,1718999443419,-165.70455,0.0002265,7]
[330111728,1718999443428,-151.0,0.0002265,7]
[330111730,1718999443436,-3000.0,0.0002265,2]
[330111731,1718999443448,-151.0,0.0002265,7]
[330111733,1718999443460,-151.0,0.0002265,7]
[330111734,1718999443469,-151.0,0.0002265,7]
[330111735,1718999443479,-151.0,0.00022659,7]
[330111736,1718999443488,-151.0,0.0002266,7]
[330111737,1718999443498,-151.0,0.0002266,7]
[330111738,1718999443507,-3000.0,0.0002266,2]
[330111739,1718999443516,-3000.0,0.0002267,2]
[330111740,1718999443526,-766.988748,0.0002267,7]
[330111741,1718999443535,-766.988748,0.0002267,7]
[330111742,1718999443546,-151.0,0.0002267,7]
[330111743,1718999443556,-463.328871,0.0002267,7]
[330111744,1718999443567,-463.328871,0.0002267,7]
[330111745,1718999443577,-151.0,0.0002267,7]
[330111746,1718999443586,-190.854964,0.0002267,7]
[330111747,1718999443596,-151.0,0.0002267,7]
[330111748,1718999443606,-234.624732,0.0002268,7]
[330111749,1718999443616,-3000.0,0.0002268,2]
[330111750,1718999443625,-151.0,0.0002268,7]
[330111751,1718999443636,-151.0,0.0002268,7]
[330111752,1718999443645,-151.0,0.0002268,7]
[330111753,1718999443655,-151.0,0.0002268,7]
[330111754,1718999443667,-151.0,0.00022688,7]
[330111755,1718999443676,-151.0,0.00022688,7]
[330111756,1718999443686,-3000.0,0.0002269,2]
[330111757,1718999443695,-3000.0,0.000227,2]
[330111758,1718999443706,-766.988748,0.000227,7]
[330111759,1718999443715,-766.988748,0.000227,7]
[330111760,1718999443725,-463.328871,0.000227,7]
[330111761,1718999443734,-463.328871,0.000227,7]
[330111762,1718999443743,-151.0,0.000227,7]
[330111763,1718999443752,-151.0,0.000227,7]
[330111764,1718999443763,-153.829,0.00022707,2]
[330111765,1718999443774,-154.018,0.00022707,2]
[330111766,1718999443784,-189.16290387,0.00022709,2]
[330111767,1718999443793,-878.16482601,0.00022709,2]
[330111768,1718999443803,-151.0,0.0002271,7]
[330111769,1718999443812,-227.51032,0.0002271,7]
[330111770,1718999443821,-3000.0,0.0002271,2]
[330111771,1718999443831,-151.0,0.0002271,7]
[330111772,1718999443840,-151.0,0.0002271,7]
[330111773,1718999443850,-172.132112,0.0002271,7]
[330111774,1718999443860,-151.0,0.00022719,7]
[330111775,1718999443871,-2413.79605276,0.00022719,2]
[330111776,1718999443881,-175.89997227,0.00022719,2]
[330111777,1718999443890,-4837.485,0.00022719,2]
[330111778,1718999443901,-2645.10006487,0.00022719,2]
[330111779,1718999443912,-3000.0,0.0002272,2]
[330111780,1718999443922,-280.21762334,0.00022729,2]
[330111781,1718999443931,-3000.0,0.0002273,2]
[330111782,1718999443940,-766.988748,0.0002273,7]
[330111783,1718999443949,-766.988748,0.0002273,7]
[330111784,1718999443959,-463.328871,0.0002273,7]
[330111785,1718999443969,-463.328871,0.0002273,7]
[330111786,1718999443979,-155.81898173,0.00022737,2]
[330111787,1718999443989,-167.35523192,0.00022737,2]
[330111788,1718999443998,-446.7522836,0.00022737,2]
[330111789,1718999444007,-929.72124472,0.00022737,2]
[330111790,1718999444016,-292.86437788,0.00022737,2]
[330111791,1718999444027,-929.72124472,0.00022737,2]
[330111792,1718999444036,-626.79430955,0.00022738,2]
[330111793,1718999444046,-159.95344407,0.00022739,2]
[330111794,1718999444056,-151.0,0.0002274,7]
[330111795,1718999444065,-3000.0,0.0002274,2]
[330111796,1718999444075,-151.0,0.0002274,7]
[330111797,1718999444085,-151.0,0.0002274,7]
[330111798,1718999444198,-151.0,0.0002274,7]
[330111799,1718999444209,-151.0,0.00022748,7]
[330111800,1718999444218,-3000.0,0.0002275,2]
[330111801,1718999444228,-3000.0,0.0002276,2]
[330111802,1718999444237,-766.988748,0.0002276,7]
[330111803,1718999444246,-766.988748,0.0002276,7]
[330111804,1718999444255,-463.328871,0.0002276,7]
[330111805,1718999444265,-463.328871,0.0002276,7]
[330111806,1718999444274,-151.0,0.0002276,7]
[330111807,1718999444284,-151.0,0.0002277,7]
[330111808,1718999444293,-151.0,0.0002277,7]
[330111809,1718999444303,-3000.0,0.0002277,2]
[330111810,1718999444312,-151.0,0.0002277,7]
[330111811,1718999444322,-230.554781,0.0002277,7]
[330111812,1718999444333,-151.0,0.00022779,7]
[330111813,1718999444342,-3000.0,0.0002278,2]
[330111814,1718999444352,-3000.0,0.0002279,2]
[330111815,1718999444362,-766.988748,0.0002279,7]
[330111816,1718999444373,-766.988748,0.0002279,7]
[330111817,1718999444386,-463.328871,0.0002279,7]
[330111818,1718999444395,-463.328875,0.0002279,7]
[330111819,1718999444405,-151.0,0.000228,7]
[330111820,1718999444416,-151.0,0.000228,7]
[330111821,1718999444426,-3000.0,0.000228,2]
[330111822,1718999444435,-3000.0,0.0002281,2]
[330111823,1718999444444,-1246.27284435,0.0002282,2]
[330111824,1718999444563,-1753.72715565,0.0002282,2]
[330111825,1718999444572,-3000.0,0.0002283,2]
[330111826,1718999444582,-151.0,0.0002284,7]
[330111827,1718999444591,-3000.0,0.0002284,2]
[330111828,1718999444600,-3000.0,0.0002285,2]
[330111829,1718999444609,-3000.0,0.0002286,2]
[330111830,1718999444619,-4365.930123,0.0002287,2]
[330111831,1718999444628,-166.666666,0.00022944,2]
[330111832,1718999444638,-11334.46605262,0.00023,2]
[330111833,1718999444647,-205.6831939,0.00023007,2]
[330111834,1718999444657,-166.666666,0.00023456,2]
[330111835,1718999444667,-171.700658,0.00023562,2]
[330111836,1718999444677,-150.0,0.0002372,2]
[330111837,1718999444686,-1752.0,0.0002372,2]
[330111838,1718999444696,-6836.81917176,0.0002383,2]
[330111839,1718999444706,-601.9260107,0.000239,2]
[330111840,1718999444716,-166.666666,0.00023969,2]
[330111841,1718999444725,-1605.65377296,0.00024,2]
[330111842,1718999444735,-258.25119453,0.00024,24]
[330111843,1718999444747,-741.74880547,0.00024,24]
[330111844,1718999444756,-500.0,0.00024,7]
[330111845,1718999444766,-500.0,0.00024,7]
[330111846,1718999444775,-500.0,0.00024,7]
[330111847,1718999444784,-500.0,0.00024,7]
[330111848,1718999444793,-500.0,0.00024,7]
[330111849,1718999444803,-500.0,0.00024,7]
[330111850,1718999444812,-500.0,0.00024,7]
[330111851,1718999444822,-500.0,0.00024,7]
[330111852,1718999444831,-389.03476653,0.00024,7]
[330111853,1718999444962,-110.96523347,0.00024,7]
[330111854,1718999444972,-352.29,0.00024,7]
[330111855,1718999444982,-500.0,0.00024,7]
[330111856,1718999444991,-500.0,0.00024,7]
[330111857,1718999445001,-500.0,0.00024,7]
[330111858,1718999445011,-500.0,0.00024,7]
[330111859,1718999445022,-500.0,0.00024,7]
[330111860,1718999445032,-500.0,0.00024,7]
[330111861,1718999445043,-500.0,0.00024,7]
[330111862,1718999445052,-500.0,0.00024,7]
[330111863,1718999445062,-211.27309867,0.00024,7]
[330111864,1718999445074,-288.72690133,0.00024,7]
[330111865,1718999445084,-500.0,0.00024,7]
[330111866,1718999445094,-500.0,0.00024,7]
[330111867,1718999445104,-500.0,0.00024,7]
[330111868,1718999445113,-500.0,0.00024,7]
[330111869,1718999445123,-370.38822588,0.00024,7]
[330111905,1718999447332,-159.29148896,0.00021877,2]
[330111907,1718999447342,-157.13057066,0.00021884,2]
[330111909,1718999447352,-229.110421,0.000219,2]
[330111910,1718999447361,-229.110421,0.000219,2]
[330111911,1718999447372,-151.0,0.00021918,2]
[330111912,1718999447385,-229.110421,0.000223,7]
[330111913,1718999447397,-229.110421,0.000226,7]
[330111914,1718999447407,-229.110421,0.0002262,7]
[330111915,1718999447417,-229.110421,0.0002264,7]
[330111916,1718999447426,-229.110421,0.00022659,7]
[330111917,1718999447436,-229.110421,0.0002268,7]
[330111918,1718999447445,-229.110421,0.0002271,7]
[330111919,1718999447457,-229.110421,0.00022729,7]
[330111920,1718999447467,-229.110421,0.0002274,7]
[330111922,1718999447477,-129.61177412,0.00024,7]
[330111924,1718999447486,-500.0,0.00024,7]
[330111926,1718999447495,-500.0,0.00024,7]
[330111927,1718999447505,-500.0,0.00024,7]
[330111928,1718999447514,-500.0,0.00024,7]
[330111929,1718999447523,-500.0,0.00024,7]
[330111930,1718999447533,-500.0,0.00024,7]
[330111931,1718999447542,-624.37,0.00024,7]
[330111932,1718999447552,-166.666666,0.00024482,2]
[330111933,1718999447562,-16372.90085741,0.00024726,3]
[330111936,1719000186399,261.48761531,0.000141,2]
[330111937,1719000223427,198.23,0.00014,2]
[330111942,1719000602461,-547.98302463,0.00014136,2]
[330111943,1719000602507,-547.98302463,0.00014136,2]
[330111944,1719000602567,-294.20373446,0.00014136,2]
[330112004,1719000632423,-319.1166303,0.00014136,2]
[330112006,1719000632433,-490.07682753,0.00016423,2]
[330112007,1719000632442,-200.64200357,0.000189,2]
[330112009,1719000632452,-525.21703192,0.0001905,2]
[330112010,1719000632462,-296.628297,0.00019106,2]
[330112012,1719000632472,-450.743675,0.00019112,2]
[330112014,1719000632482,-20650.75664338,0.00019321,2]
[330112016,1719000632498,-457.512,0.00019321,2]
[330112018,1719000632509,-3791.73135662,0.00019321,2]
[330112020,1719000632519,-1752.0,0.00019817,2]
[330112022,1719000632529,-314.62809134,0.0002,2]
[330112023,1719000632539,-200.0,0.0002,2]
[330112025,1719000632548,-168.660891,0.0002014,2]
[330112027,1719000632558,-208.535,0.00020859,2]
[330112029,1719000632567,-11.5510284,0.00020859,2]
[330112048,1719000638238,-155.73161099,0.00016424,2]
[330112050,1719000638249,-525.21703192,0.00019048,2]
[330112051,1719000638261,-283.7539716,0.00020859,2]
[330112052,1719000638271,-150.0,0.00020907,2]
[330112053,1719000638281,-692.548718,0.00021096,2]
[330112054,1719000638291,-272.003207,0.00021096,2]
[330112055,1719000638301,-166.666666,0.00021918,2]
[330112056,1719000638312,-166.666666,0.00022431,2]
[330112057,1719000638321,-1238.55563438,0.00022817,2]
[330112058,1719000638334,-513.44436562,0.00022817,2]
[330112059,1719000638344,-166.666666,0.00022944,2]
[330112060,1719000638355,-166.666666,0.00023456,2]
[330112061,1719000638365,-150.0,0.00023859,2]
[330112062,1719000638375,-8.16927691,0.000239,2]
[330112063,1719000638393,-192.47272666,0.000239,2]
[330112064,1719000638403,-150.0,0.00023907,2]
[330112065,1719000638414,-166.666666,0.00023969,2]
[330112066,1719000638423,-154.82195475,0.00024,2]